bitfinex/quotes_BTCUSD_20220207
["timestamp","ask_amount","ask_price","bid_price","bid_amount"]
[1644245327622,0.425486,43266.0,43265.0,0.25893294]
[1644245327877,0.09975407,43266.0,43265.0,0.25893294]
[1644245328074,0.09975407,43266.0,43262.0,0.08633292]
[1644245328271,0.09975407,43266.0,43256.0,0.057835]
[1644245328471,0.09975407,43266.0,43260.0,0.25123893]
[1644245328673,0.00065924,43263.0,43256.0,0.26702636]
[1644245329072,0.00065924,43263.0,43259.0,0.19055897]
[1644245329273,0.00041331,43266.0,43254.0,0.31477556]
[1644245329476,0.00041331,43266.0,43251.0,0.02155134]
[1644245329675,0.00041331,43266.0,43251.0,0.02082725]
[1644245330178,2.55063442,43257.0,43251.0,0.02082725]
[1644245330375,0.325586,43256.0,43254.0,0.21144558]
[1644245330775,0.1,43256.0,43254.0,0.44242972]
[1644245330975,0.1,43256.0,43251.0,0.01856371]
[1644245331814,2.55063442,43257.0,43251.0,0.01856371]
[1644245331815,2.65063442,43257.0,43251.0,0.01856371]
[1644245332016,0.325586,43256.0,43251.0,0.01856371]
[1644245332215,2.65063442,43257.0,43251.0,0.01856371]
[1644245332415,2.65063442,43257.0,43246.0,0.21043178]
[1644245333215,2.65063442,43257.0,43253.0,0.2176548]
[1644245333817,0.1,43257.0,43254.0,0.325586]
[1644245334221,0.01841523,43261.0,43257.0,0.320633]
[1644245334417,0.00065742,43265.0,43260.0,0.89917218]
[1644245334617,0.0462,43271.0,43263.0,0.05]
[1644245334824,0.00065753,43265.0,43263.0,0.05]
[1644245335018,0.00065753,43265.0,43264.0,0.325586]
[1644245335217,0.00065753,43265.0,43264.0,0.383419]
[1644245335674,0.24692777,43276.0,43264.0,0.64825401]
[1644245336073,0.00065759,43267.0,43264.0,0.32266801]
[1644245336279,0.00065759,43267.0,43266.0,0.05]
[1644245336479,0.00075759,43267.0,43266.0,0.6527933]
[1644245336878,0.01883691,43274.0,43267.0,0.8]
[1644245337079,0.01883691,43274.0,43271.0,0.107821]
[1644245337277,0.01883691,43274.0,43272.0,0.77866722]
[1644245337479,0.01883691,43274.0,43272.0,0.32148467]
[1644245337677,0.01883691,43274.0,43272.0,0.25441727]
[1644245338479,0.00065595,43275.0,43272.0,0.25441727]
[1644245338678,0.00065595,43275.0,43272.0,0.24941727]
[1644245339319,0.24692777,43279.0,43272.0,0.24941727]
[1644245339617,0.00065595,43276.0,43275.0,0.24582439]
[1644245339918,0.00065595,43276.0,43275.0,0.29582439]
[1644245340119,0.00065595,43276.0,43275.0,0.57137139]
[1644245340619,0.24692777,43282.0,43275.0,0.325547]
[1644245340818,0.00065595,43278.0,43277.0,0.08874836]
[1644245341221,0.00065595,43278.0,43277.0,0.18874836]
[1644245341420,0.00065595,43278.0,43277.0,0.08874836]
[1644245341620,0.34682777,43283.0,43277.0,0.35314686]
[1644245341820,0.67237477,43283.0,43282.0,0.11387727]
[1644245342021,0.425447,43283.0,43282.0,0.11387727]
[1644245342222,0.425447,43283.0,43275.0,0.11563]
[1644245342223,0.87247477,43283.0,43275.0,0.11563]
[1644245342423,0.87247477,43283.0,43271.0,0.165642]
[1644245342424,0.24725839,43279.0,43271.0,0.02039342]
[1644245342624,0.325547,43278.0,43271.0,0.02039342]
[1644245342871,0.325547,43277.0,43271.0,0.02039342]
[1644245343269,0.325547,43276.0,43271.0,0.07821942]
[1644245343467,0.9,43276.0,43261.0,0.7267]
[1644245343668,0.29725839,43272.0,43250.0,0.05]
[1644245343872,0.29725839,43272.0,43244.0,0.02]
[1644245343873,0.19789964,43260.0,43244.0,0.02]
[1644245344069,0.19789964,43255.0,43244.0,0.02]
[1644245344271,0.32063537,43246.0,43244.0,0.02]
[1644245344467,0.325547,43245.0,43244.0,0.02]
[1644245344666,0.325547,43245.0,43241.0,0.02029664]
[1644245344667,0.8,43244.0,43241.0,0.02029664]
[1644245344866,0.8,43244.0,43224.0,0.00045074]
[1644245344867,0.325547,43241.0,43224.0,0.00045074]
[1644245345069,0.19789964,43237.0,43224.0,0.00045074]
[1644245345269,0.383441,43235.0,43226.0,0.26036118]
[1644245345466,0.383441,43235.0,43229.0,0.20911493]
[1644245345467,0.057894,43235.0,43229.0,0.20911493]
[1644245345668,0.1,43235.0,43233.0,0.05]
[1644245345873,0.1,43235.0,43232.0,0.05072428]
[1644245346169,0.1,43235.0,43232.0,0.00072428]
[1644245346622,0.1,43235.0,43226.0,0.00052864]
[1644245346823,0.22101964,43237.0,43231.0,0.02072429]
[1644245347021,0.325547,43233.0,43231.0,0.02072429]
[1644245347221,0.41368659,43239.0,43231.0,0.02072429]
[1644245347421,0.325547,43238.0,43231.0,0.02072429]
[1644245347621,0.325547,43237.0,43231.0,0.02072429]
[1644245347820,0.115793,43234.0,43231.0,0.02]
[1644245348024,0.0426,43240.0,43231.0,0.02]
[1644245348025,0.0999,43242.0,43233.0,0.05]
[1644245348222,0.0999,43242.0,43241.0,0.05]
[1644245348625,1.8298943,43249.0,43241.0,0.05]
[1644245348824,1.82823694,43249.0,43248.0,0.05]
[1644245349023,1.82823694,43249.0,43243.0,0.115715]
[1644245349224,0.325547,43248.0,43246.0,0.00072411]
[1644245349623,1.82823694,43249.0,43246.0,0.00072411]
[1644245349823,0.325547,43248.0,43246.0,0.00072411]
[1644245350024,1.82823694,43249.0,43246.0,0.00072411]
[1644245350225,1.82823694,43249.0,43245.0,0.057856]
[1644245350468,1.82823694,43249.0,43245.0,0.05854445]
[1644245350870,1.82823694,43249.0,43245.0,0.11639745]
[1644245351072,1.82823694,43249.0,43247.0,0.23088477]
[1644245351268,1.82823694,43249.0,43247.0,0.22588477]
[1644245351669,1.82823694,43249.0,43248.0,0.05]
[1644245352371,0.45765043,43248.0,43246.0,0.00068844]
[1644245352769,0.55765043,43248.0,43245.0,0.057856]
[1644245352971,0.55765043,43248.0,43245.0,0.00068846]
[1644245353371,0.45765043,43248.0,43247.0,0.05]
[1644245353578,0.023,43254.0,43247.0,0.05]
[1644245353579,0.023,43254.0,43247.0,0.35]
[1644245353776,0.023,43254.0,43245.0,0.05068846]
[1644245353970,0.023,43254.0,43239.0,0.32148522]
[1644245353971,0.325547,43252.0,43242.0,0.05]
[1644245354220,0.023,43254.0,43248.0,0.00069362]
[1644245354221,0.325547,43251.0,43248.0,0.00069362]
[1644245354818,0.325547,43251.0,43246.0,0.11139862]
[1644245354819,0.425547,43251.0,43246.0,0.11139862]
[1644245355018,0.325547,43251.0,43246.0,0.11139862]
[1644245355319,0.425547,43251.0,43244.0,0.01931364]
[1644245355517,0.325547,43251.0,43246.0,0.05]
[1644245355718,0.25862026,43257.0,43246.0,0.05]
[1644245355919,0.325547,43256.0,43246.0,0.05]
[1644245356120,0.325547,43256.0,43245.0,0.057859]
[1644245356121,0.425547,43256.0,43245.0,0.057859]
[1644245356318,0.425547,43256.0,43248.0,0.05]
[1644245356319,0.1,43256.0,43248.0,0.05]
[1644245356519,0.1,43256.0,43249.0,0.26731509]
[1644245356720,0.325547,43255.0,43249.0,0.26731509]
[1644245356919,0.425547,43255.0,43246.0,0.115706]
[1644245357218,0.1,43255.0,43246.0,0.165706]
[1644245357620,0.1,43255.0,43246.0,0.115706]
[1644245357879,0.02046972,43257.0,43248.0,0.05]
[1644245358075,0.02046972,43257.0,43246.0,0.11643012]
[1644245358276,0.00094,43251.0,43246.0,0.00072412]
[1644245358475,0.00094,43251.0,43242.0,0.01971001]
[1644245358476,1.36734557,43250.0,43242.0,0.01971001]
[1644245358676,1.39046557,43250.0,43242.0,0.01971001]
[1644245358873,0.15862026,43249.0,43242.0,0.01971001]
[1644245359072,0.368147,43248.0,43242.0,0.01971001]
[1644245359274,0.468147,43248.0,43242.0,0.01971001]
[1644245360473,0.057874,43247.0,43242.0,0.01971001]
[1644245360674,0.208547,43246.0,43242.0,0.01971001]
[1644245361384,0.1,43249.0,43245.0,0.05]
[1644245361632,0.02100107,43251.0,43249.0,0.22884389]
[1644245362030,0.02100107,43251.0,43245.0,0.19930129]
[1644245362231,0.02100107,43251.0,43242.0,0.01971001]
[1644245362430,0.02100107,43251.0,43243.0,0.057864]
[1644245362630,0.40787485,43257.0,43244.0,0.00072137]
[1644245362631,0.057867,43249.0,43244.0,0.00072137]
[1644245362829,0.115724,43256.0,43246.0,0.05]
[1644245362830,0.00065785,43250.0,43246.0,0.05]
[1644245363031,0.00065785,43250.0,43247.0,0.2033241]
[1644245363230,0.00065785,43250.0,43249.0,0.23543032]
[1644245363630,0.325603,43256.0,43249.0,0.23543032]
[1644245363835,0.00065785,43252.0,43249.0,0.23543032]
[1644245364033,0.00065785,43252.0,43251.0,0.045]
[1644245364230,0.00065785,43252.0,43251.0,0.325603]
[1644245364432,0.00065785,43252.0,43251.0,0.370603]
[1644245364734,0.00065785,43252.0,43251.0,0.325603]
[1644245364934,0.0999,43257.0,43256.0,0.21470553]
[1644245365133,0.0999,43257.0,43256.0,0.25970553]
[1644245365975,0.1049,43257.0,43250.0,0.115695]
[1644245366175,0.005,43256.0,43250.0,0.110695]
[1644245366376,0.32893741,43256.0,43249.0,0.23543032]
[1644245366574,0.325582,43256.0,43249.0,0.33993091]
[1644245366775,0.00019794,43259.0,43253.0,0.04664459]
[1644245366977,0.00019794,43259.0,43258.0,0.04664459]
[1644245367175,0.01837368,43266.0,43258.0,0.25004587]
[1644245367374,0.01837368,43266.0,43265.0,0.22271644]
[1644245367576,0.34395568,43266.0,43265.0,0.22271644]
[1644245368377,0.34395568,43266.0,43265.0,0.26936103]
[1644245368577,0.14945541,43269.0,43265.0,0.52928117]
[1644245368578,0.1461,43269.0,43265.0,0.52928117]
[1644245368775,0.00065785,43268.0,43265.0,0.52928117]
[1644245368978,0.00065785,43268.0,43265.0,0.22271644]
[1644245369218,0.00335541,43267.0,43265.0,0.22271644]
[1644245369618,0.00335541,43267.0,43265.0,0.21771644]
[1644245370118,0.00335541,43267.0,43266.0,0.25324471]
[1644245370318,0.00335541,43267.0,43265.0,0.21771644]
[1644245371018,0.00335541,43266.0,43265.0,0.26436103]
[1644245371327,0.00019794,43268.0,43265.0,0.58095562]
[1644245371722,0.00019794,43268.0,43266.0,0.325582]
[1644245371918,0.00019794,43268.0,43267.0,0.29775985]
[1644245372118,0.0002,43273.0,43267.0,0.67304008]
[1644245372320,0.0002,43273.0,43272.0,0.04664459]
[1644245373173,0.0002,43273.0,43272.0,0.53175047]
[1644245373372,0.01978518,43277.0,43274.0,0.5]
[1644245373574,0.001,43278.0,43277.0,0.4]
[1644245373769,0.001,43278.0,43277.0,1.02755249]
[1644245373971,0.10253101,43281.0,43278.0,0.25]
[1644245373972,0.09453101,43281.0,43278.0,0.25]
[1644245374174,0.09453101,43281.0,43277.0,0.62755249]
[1644245374175,0.09453101,43281.0,43280.0,0.04664459]
[1644245374370,0.09453101,43281.0,43280.0,0.25539956]
[1644245374569,0.0919,43281.0,43280.0,0.25539956]
[1644245374771,0.09525541,43281.0,43280.0,0.09266038]
[1644245374968,0.42083741,43281.0,43277.0,0.115608]
[1644245375170,0.00335541,43278.0,43277.0,0.115608]
[1644245375970,0.00335541,43278.0,43277.0,0.32944055]
[1644245376169,0.00335541,43278.0,43276.0,0.0197]
[1644245376372,0.0426,43277.0,43276.0,0.0197]
[1644245376627,0.368182,43277.0,43276.0,0.0197]
[1644245376922,0.491302,43277.0,43276.0,0.0197]
[1644245377119,0.73837691,43277.0,43276.0,0.0197]
[1644245377518,0.95483136,43277.0,43276.0,0.0197]
[1644245377817,0.89700136,43277.0,43276.0,0.0197]
[1644245378019,0.89700136,43277.0,43276.0,0.06634459]
[1644245378020,0.1918,43277.0,43276.0,0.06634459]
[1644245378218,0.29764783,43282.0,43276.0,0.06634459]
[1644245378219,0.001,43282.0,43276.0,0.0197]
[1644245378419,0.001,43282.0,43274.0,0.02918404]
[1644245378420,0.0918,43277.0,43274.0,0.02918404]
[1644245378618,0.09515541,43277.0,43271.0,0.04664459]
[1644245378817,0.11485541,43277.0,43271.0,0.04664459]
[1644245379018,0.1115,43277.0,43271.0,0.30203271]
[1644245379218,0.1115,43277.0,43275.0,0.115627]
[1644245379617,0.00065785,43276.0,43275.0,0.115627]
[1644245380019,0.00401326,43276.0,43275.0,0.115627]
[1644245380475,0.00401326,43276.0,43267.0,0.31866174]
[1644245380476,0.00335541,43276.0,43267.0,0.01866174]
[1644245380675,0.58401291,43276.0,43267.0,0.01866174]
[1644245380878,0.0426,43275.0,43267.0,0.01866174]
[1644245381273,0.20114311,43275.0,43267.0,0.01866174]
[1644245381476,0.0426,43275.0,43267.0,0.01866174]
[1644245381674,0.20114311,43275.0,43267.0,0.01866174]
[1644245381874,0.00065785,43273.0,43267.0,0.01866174]
[1644245382076,0.0426,43272.0,43267.0,0.01866174]
[1644245382274,0.0426,43272.0,43268.0,0.057829]
[1644245383077,0.04279794,43272.0,43268.0,0.057829]
[1644245384123,0.0426,43272.0,43268.0,0.115653]
[1644245384319,0.04325785,43272.0,43268.0,0.057829]
[1644245385416,0.0426,43272.0,43268.0,0.057829]
[1644245385617,0.04325785,43272.0,43268.0,0.057829]
[1644245386019,0.325582,43271.0,43268.0,0.052829]
[1644245386417,0.425582,43271.0,43268.0,0.052829]
[1644245386617,0.468182,43271.0,43268.0,0.052829]
[1644245387120,0.368182,43271.0,43269.0,0.05]
[1644245387324,0.1,43271.0,43270.0,0.05]
[1644245387519,0.1,43271.0,43268.0,0.110654]
[1644245388376,0.00019794,43273.0,43268.0,0.110654]
[1644245388572,0.00019794,43273.0,43272.0,0.23952614]
[1644245388874,0.08912,43273.0,43272.0,0.23952614]
[1644245389073,0.414702,43273.0,43272.0,0.23952614]
[1644245389274,0.08912,43273.0,43272.0,0.23952614]
[1644245389574,0.08912,43273.0,43271.0,0.115643]
[1644245389575,0.4212,43273.0,43271.0,0.115643]
[1644245389775,0.4212,43273.0,43271.0,0.113643]
[1644245389776,0.557662,43272.0,43271.0,0.113643]
[1644245390175,0.657662,43272.0,43271.0,0.113643]
[1644245391728,0.33208,43272.0,43271.0,0.443089]
[1644245391928,0.2224475,43272.0,43271.0,0.163643]
[1644245392124,0.3224475,43272.0,43271.0,0.163643]
[1644245392924,0.3224475,43272.0,43271.0,0.438643]
[1644245393125,0.1,43272.0,43271.0,0.163643]
[1644245393328,0.08912,43273.0,43271.0,0.163643]
[1644245394526,0.15920096,43274.0,43271.0,0.163643]
[1644245394926,0.15854311,43274.0,43273.0,0.05]
[1644245395133,1.01885885,43275.0,43274.0,0.8]
[1644245395378,1.01885885,43275.0,43274.0,1.125582]
[1644245395580,0.02070865,43281.0,43274.0,0.325582]
[1644245395881,0.02070865,43281.0,43272.0,0.057805]
[1644245395882,0.19770031,43290.0,43277.0,0.87774661]
[1644245396079,0.0001,43287.0,43284.0,0.14337917]
[1644245396279,0.001,43292.0,43286.0,0.7]
[1644245396479,0.001,43292.0,43288.0,0.325491]
[1644245396880,0.001,43292.0,43289.0,0.20307436]
[1644245397081,0.001,43292.0,43290.0,0.178818]
[1644245397281,0.001,43292.0,43289.0,0.05]
[1644245397485,0.001,43292.0,43287.0,0.281141]
[1644245398080,0.001,43292.0,43288.0,0.27613357]
[1644245398280,0.001,43292.0,43291.0,0.07454726]
[1644245398481,0.001,43292.0,43291.0,0.27969751]
[1644245398683,0.001,43292.0,43291.0,0.27371656]
[1644245398882,0.001,43292.0,43291.0,0.25201656]
[1644245399518,0.001,43292.0,43291.0,0.57750556]
[1644245399720,0.00120432,43294.0,43292.0,0.45]
[1644245399920,0.00120432,43294.0,43293.0,0.59627847]
[1644245400123,0.00185395,43294.0,43293.0,0.65770461]
[1644245400322,0.00185395,43294.0,43293.0,0.375489]
[1644245400726,0.00185395,43294.0,43293.0,0.65237242]
[1644245400921,0.003,43297.0,43295.0,0.45]
[1644245401124,0.003,43297.0,43296.0,0.60663689]
[1644245401322,0.003,43297.0,43296.0,0.61157927]
[1644245401520,0.003,43297.0,43296.0,0.325489]
[1644245402120,0.003,43297.0,43296.0,0.375489]
[1644245402521,0.003,43297.0,43296.0,0.96911868]
[1644245402972,0.001,43298.0,43297.0,0.8]
[1644245403169,0.001,43298.0,43297.0,1.40870176]
[1644245403370,0.005,43301.0,43299.0,0.6]
[1644245403570,0.005,43301.0,43300.0,0.325489]
[1644245403768,0.024,43309.0,43301.0,1.06387726]
[1644245403971,0.024,43309.0,43302.0,0.325481]
[1644245404172,0.024,43309.0,43305.0,0.01834358]
[1644245404369,0.024,43309.0,43305.0,0.34379958]
[1644245404769,0.003,43307.0,43305.0,0.70746811]
[1644245404971,0.002,43307.0,43305.0,0.45933458]
[1644245405170,0.23408,43307.0,43305.0,0.45933458]
[1644245405369,0.23408,43307.0,43306.0,0.35]
[1644245405370,0.22908,43307.0,43306.0,0.35]
[1644245405575,0.000648,43308.0,43307.0,0.7]
[1644245405774,0.24707962,43317.0,43307.0,0.7]
[1644245405775,0.24707962,43320.0,43310.0,0.057753]
[1644245405982,0.24707962,43322.0,43311.0,0.6254]
[1644245406170,0.44581147,43327.0,43311.0,0.3254]
[1644245406171,0.00077982,43316.0,43311.0,0.3254]
[1644245406371,0.00077982,43316.0,43314.0,0.20761042]
[1644245406637,0.00077982,43316.0,43313.0,0.39053517]
[1644245406824,0.00077982,43316.0,43314.0,0.325376]
[1644245407025,0.1499,43327.0,43314.0,0.3831236]
[1644245407026,0.24707962,43325.0,43314.0,0.3831236]
[1644245407226,0.0999,43327.0,43315.0,1.475362]
[1644245407424,0.0999,43327.0,43316.0,0.115482]
[1644245407624,0.23208,43326.0,43317.0,0.375345]
[1644245407827,0.23208,43326.0,43322.0,0.29690428]
[1644245408028,0.23208,43326.0,43311.0,0.215829]
[1644245408029,0.05,43325.0,43311.0,0.215829]
[1644245408230,0.05,43325.0,43314.0,0.383119]
[1644245408231,0.05,43321.0,43314.0,0.383119]
[1644245408525,0.28208,43321.0,43315.0,0.325365]
[1644245408724,0.28208,43321.0,43320.0,0.02087601]
[1644245408928,0.23208,43321.0,43320.0,0.02087601]
[1644245409125,0.23208,43321.0,43320.0,0.34619901]
[1644245409824,0.3212,43321.0,43320.0,0.34619901]
[1644245410225,0.3212,43321.0,43320.0,0.68840426]
[1644245410492,0.3212,43321.0,43320.0,0.98037621]
[1644245410693,0.23208,43321.0,43320.0,0.98037621]
[1644245410896,0.000999,43328.0,43321.0,0.8]
[1644245411091,0.000999,43328.0,43327.0,0.33026]
[1644245411295,0.25215428,43328.0,43327.0,0.32526]
[1644245411496,0.25215428,43328.0,43317.0,0.02157134]
[1644245411693,0.20715428,43328.0,43321.0,0.05]
[1644245411891,0.045,43322.0,43321.0,0.370307]
[1644245412091,0.07424614,43326.0,43321.0,0.325307]
[1644245412295,0.045,43322.0,43320.0,0.325319]
[1644245412595,0.045,43322.0,43318.0,0.02097704]
[1644245412792,0.0426,43325.0,43318.0,0.02097704]
[1644245412793,0.045,43319.0,43318.0,0.02097704]
[1644245413395,0.045,43319.0,43318.0,0.23390076]
[1644245413795,0.00154584,43321.0,43318.0,0.55924076]
[1644245413992,0.00154584,43321.0,43319.0,0.325331]
[1644245414217,0.00154584,43321.0,43319.0,0.375331]
[1644245414517,0.00090593,43321.0,43320.0,0.325323]
[1644245415115,0.00090593,43321.0,43320.0,0.320323]
[1644245415316,0.04590593,43321.0,43320.0,0.320323]
[1644245415516,0.00090593,43321.0,43320.0,0.320323]
[1644245418369,0.04590593,43321.0,43320.0,0.320323]
[1644245418871,0.04590593,43321.0,43317.0,0.02097512]
[1644245419069,0.04590593,43321.0,43318.0,0.25367483]
[1644245419270,0.00090593,43321.0,43319.0,0.320338]
[1644245419470,0.00154584,43321.0,43319.0,0.320338]
[1644245420271,0.00154584,43321.0,43319.0,0.29270518]
[1644245420470,0.00090593,43321.0,43320.0,0.32033]
[1644245421625,0.00090593,43321.0,43320.0,0.51229826]
[1644245422319,0.00090593,43321.0,43320.0,0.32033]
[1644245422522,0.045,43321.0,43317.0,0.01938608]
[1644245422721,0.00059187,43323.0,43317.0,0.03964141]
[1644245422722,0.045,43318.0,43317.0,0.03964141]
[1644245422921,0.045,43318.0,43317.0,0.02025533]
[1644245423121,0.145,43324.0,43317.0,0.34060833]
[1644245423323,0.015999,43329.0,43318.0,0.75]
[1644245423519,0.0945,43331.0,43319.0,0.320335]
[1644245423719,0.0945,43331.0,43319.0,0.41010936]
[1644245423923,0.0945,43331.0,43329.0,0.22480814]
[1644245424121,0.365438,43330.0,43329.0,0.22480814]
[1644245424321,0.365438,43330.0,43329.0,0.27480814]
[1644245424322,0.0283,43330.0,43329.0,0.27480814]
[1644245424524,0.0283,43330.0,43329.0,0.59505914]
[1644245425118,0.0233,43330.0,43329.0,0.59505914]
[1644245425370,0.0233,43330.0,43329.0,0.27480814]
[1644245425766,0.0233,43330.0,43329.0,0.27462488]
[1644245425974,0.0233,43330.0,43329.0,0.22480814]
[1644245426573,0.0233,43330.0,43329.0,0.59505914]
[1644245426769,0.001,43335.0,43329.0,0.94505914]
[1644245426770,0.00063979,43332.0,43329.0,0.94505914]
[1644245426969,0.00063979,43332.0,43330.0,0.115467]
[1644245427168,0.00063979,43332.0,43331.0,0.370234]
[1644245427369,0.00063979,43332.0,43331.0,0.56461392]
[1644245427572,0.001,43335.0,43331.0,0.91844978]
[1644245427768,0.001,43335.0,43332.0,0.057733]
[1644245427769,0.00063979,43334.0,43332.0,0.057733]
[1644245427968,0.00063979,43334.0,43333.0,0.320216]
[1644245428170,0.00063979,43334.0,43333.0,0.05]
[1644245428371,0.00063979,43334.0,43329.0,0.22480814]
[1644245428573,0.00063979,43334.0,43329.0,0.27480814]
[1644245428773,0.001,43335.0,43330.0,0.01867254]
[1644245428971,0.001,43335.0,43330.0,0.12948147]
[1644245428972,0.00063979,43334.0,43330.0,0.12948147]
[1644245429421,0.00063979,43334.0,43331.0,0.320233]
[1644245429624,0.00063979,43334.0,43330.0,0.12948147]
[1644245429920,0.001,43335.0,43331.0,0.320233]
[1644245430122,0.001,43335.0,43332.0,0.31258451]
[1644245430421,0.00063979,43334.0,43333.0,0.320216]
[1644245431220,0.001,43335.0,43333.0,0.320216]
[1644245431428,0.001,43335.0,43330.0,0.12948147]
[1644245432020,0.001,43335.0,43331.0,0.01913973]
[1644245432223,0.001,43335.0,43331.0,0.06913973]
[1644245432421,0.001,43335.0,43331.0,0.01913973]
[1644245432623,0.00163979,43335.0,43330.0,0.02910812]
[1644245432866,0.00163979,43335.0,43329.0,0.05925124]
[1644245433667,0.25846997,43331.0,43329.0,0.04925118]
[1644245433868,0.25846997,43331.0,43326.0,0.13700782]
[1644245433869,0.55846997,43331.0,43326.0,0.02152682]
[1644245434069,0.0426,43330.0,43326.0,0.02152682]
[1644245434867,0.0426,43330.0,43322.0,0.21015682]
[1644245435271,0.04323979,43330.0,43325.0,0.057746]
[1644245435868,0.04323979,43330.0,43323.0,0.057749]
[1644245435869,0.11654911,43329.0,43323.0,0.057749]
[1644245436070,0.04354,43328.0,43323.0,0.057749]
[1644245436269,0.0426,43328.0,43323.0,0.057749]
[1644245436471,0.04323979,43328.0,43323.0,0.107749]
[1644245436727,0.04323979,43328.0,43326.0,0.21105234]
[1644245437323,0.0426,43328.0,43327.0,0.320269]
[1644245438123,0.0426,43328.0,43325.0,0.057747]
[1644245439025,0.0426,43328.0,43326.0,0.320277]
[1644245439224,0.00063979,43329.0,43326.0,0.320277]
[1644245439424,0.00063979,43329.0,43326.0,0.370277]
[1644245439627,0.00063979,43329.0,43328.0,0.320261]
[1644245439827,0.00355876,43335.0,43328.0,0.44722764]
[1644245439828,0.001,43335.0,43328.0,0.44722764]
[1644245440030,3.53263259,43347.0,43336.0,0.25]
[1644245440259,0.001,43352.0,43336.0,0.25]
[1644245440260,0.16740787,43352.0,43347.0,0.8]
[1644245440478,0.003,43366.0,43348.0,0.86522898]
[1644245440479,0.23108551,43361.0,43348.0,0.86522898]
[1644245440679,0.06005924,43366.0,43352.0,0.057702]
[1644245440880,0.44759191,43374.0,43353.0,0.3]
[1644245440881,0.05,43373.0,43353.0,0.3]
[1644245441076,0.004,43374.0,43366.0,0.08228524]
[1644245441077,0.13368,43368.0,43366.0,0.08228524]
[1644245441278,0.16468665,43375.0,43374.0,0.3582519]
[1644245441481,0.09959376,43377.0,43374.0,0.55924678]
[1644245441678,0.002,43378.0,43375.0,0.56697573]
[1644245441879,0.002,43378.0,43376.0,0.3]
[1644245442077,0.024,43379.0,43376.0,0.3]
[1644245442078,0.02,43389.0,43376.0,1.119839]
[1644245442282,0.02,43389.0,43377.0,0.11929859]
[1644245442477,0.02,43389.0,43381.0,0.34273044]
[1644245442680,0.02,43389.0,43382.0,0.319783]
[1644245442681,0.24649715,43384.0,43382.0,0.319783]
[1644245442977,0.02,43389.0,43383.0,0.319777]
[1644245442978,0.24629412,43387.0,43383.0,0.319777]
[1644245443179,0.05,43384.0,43382.0,0.17296131]
[1644245443379,0.24629412,43385.0,43382.0,0.17296131]
[1644245443579,0.24629412,43385.0,43382.0,0.057654]
[1644245443776,0.02,43389.0,43382.0,0.057654]
[1644245443777,0.05,43383.0,43382.0,0.057654]
[1644245443978,0.049,43383.0,43382.0,0.057654]
[1644245444225,0.02,43389.0,43383.0,0.32448903]
[1644245444427,0.02,43389.0,43384.0,0.32077]
[1644245444622,0.02,43389.0,43384.0,0.43607]
[1644245444825,0.02,43389.0,43384.0,0.1153]
[1644245444826,0.049,43387.0,43384.0,0.1153]
[1644245445021,0.00063784,43388.0,43384.0,0.1153]
[1644245445221,0.00063784,43388.0,43385.0,0.319759]
[1644245445421,0.00063784,43388.0,43385.0,0.37740932]
[1644245445626,0.00063784,43388.0,43387.0,0.319743]
[1644245445821,0.00063784,43388.0,43385.0,0.115301]
[1644245445822,0.049,43388.0,43385.0,0.115301]
[1644245446023,0.02019194,43389.0,43387.0,0.319743]
[1644245446226,0.049,43388.0,43386.0,0.115309]
[1644245446423,0.049,43388.0,43387.0,0.05]
[1644245446622,0.049,43388.0,43384.0,0.057661]
[1644245446825,0.02019194,43389.0,43385.0,0.02152796]
[1644245447024,0.049,43386.0,43385.0,0.07152796]
[1644245447427,0.04,43390.0,43389.0,0.23080806]
[1644245448076,0.035,43390.0,43389.0,0.23080806]
[1644245450277,0.035,43390.0,43389.0,0.16367675]
[1644245450481,0.360438,43390.0,43389.0,0.1047224]
[1644245450680,0.325438,43388.0,43387.0,0.06100218]
[1644245450878,0.425438,43388.0,43387.0,0.06100218]
[1644245451078,0.1,43388.0,43387.0,0.06100218]
[1644245451484,0.02303,43403.0,43388.0,0.7]
[1644245451727,0.09863905,43399.0,43391.0,0.057657]
[1644245451925,0.09863905,43399.0,43393.0,0.057647]
[1644245452128,0.09863905,43399.0,43394.0,0.05]
[1644245452325,0.07048258,43397.0,43394.0,0.05]
[1644245452525,0.29560582,43400.0,43395.0,0.115295]
[1644245452828,0.22062222,43400.0,43395.0,0.115295]
[1644245453025,0.02303,43403.0,43395.0,0.115295]
[1644245453327,0.00586884,43402.0,43395.0,0.115295]
[1644245453729,0.65858552,43406.0,43399.0,0.05]
[1644245453730,0.61598552,43406.0,43399.0,0.05]
[1644245453931,0.61598552,43406.0,43396.0,0.25663813]
[1644245453932,0.61598552,43406.0,43405.0,0.37151876]
[1644245454326,0.61598552,43406.0,43403.0,0.05]
[1644245454526,0.61598552,43406.0,43402.0,0.107637]
[1644245454726,0.61598552,43406.0,43403.0,0.20723201]
[1644245454931,0.00187023,43409.0,43405.0,1.169588]
[1644245455128,0.00187023,43409.0,43408.0,0.05]
[1644245455380,0.05042077,43412.0,43409.0,1.00375534]
[1644245455577,0.02033452,43419.0,43412.0,0.8]
[1644245455775,0.1,43428.0,43412.0,0.8]
[1644245455776,0.6575,43423.0,43417.0,0.05]
[1644245455976,0.00066904,43419.0,43418.0,0.29]
[1644245456175,0.6575,43423.0,43418.0,0.34]
[1644245456176,0.49498995,43423.0,43418.0,0.34]
[1644245456376,0.11875193,43433.0,43422.0,0.09867451]
[1644245456581,0.001648,43446.0,43431.0,0.04108351]
[1644245456777,15.55261099,43444.0,43443.0,1.915]
[1644245456976,15.55261099,43444.0,43443.0,0.55368351]
[1644245456977,12.34673899,43444.0,43443.0,0.55368351]
[1644245457176,12.34673899,43444.0,43443.0,0.60368351]
[1644245457177,9.83392714,43444.0,43443.0,0.60368351]
[1644245457376,8.98762714,43444.0,43443.0,0.5126]
[1644245457675,5.61407214,43444.0,43443.0,0.42]
[1644245457879,5.6121852,43444.0,43443.0,0.42]
[1644245458078,5.87389197,43444.0,43443.0,0.42]